[Event "Live Chess"]
[Site "Chess.com"]
[Date "2010.12.30"]
[Round "-"]
[White "hipposcottimus"]
[Black "RuiPalma"]
[Result "1-0"]
[CurrentPosition "4Q2R/6rk/8/pp6/2p5/8/PPP3PP/4R1K1 b - -"]
[Timezone "UTC"]
[ECO "C55"]
[ECOUrl "https://www.chess.com/openings/Italian-Game-Anti-Fried-Liver-Defense"]
[UTCDate "2010.12.30"]
[UTCTime "22:36:00"]
[WhiteElo "1369"]
[BlackElo "1318"]
[TimeControl "600+2"]
[Termination "hipposcottimus won by checkmate"]
[StartTime "22:36:00"]
[EndDate "2010.12.30"]
[EndTime "22:49:46"]
[Link "https://www.chess.com/game/live/82663787"]

1. e4 {[%clk 0:10:00]} 1... e5 {[%clk 0:10:00]} 2. Nf3 {[%clk 0:09:58.7]} 2... Nc6 {[%clk 0:09:58.5]} 3. Bc4 {[%clk 0:09:58.6]} 3... h6 {[%clk 0:09:52.3]} 4. d4 {[%clk 0:09:50.5]} 4... exd4 {[%clk 0:09:51.6]} 5. Nxd4 {[%clk 0:09:49.3]} 5... Nxd4 {[%clk 0:09:52.4]} 6. Qxd4 {[%clk 0:09:47.8]} 6... d6 {[%clk 0:09:53.2]} 7. Nc3 {[%clk 0:09:39.8]} 7... Bd7 {[%clk 0:09:51]} 8. Be3 {[%clk 0:09:36.5]} 8... Nf6 {[%clk 0:09:48.7]} 9. f4 {[%clk 0:09:35.8]} 9... Ng4 {[%clk 0:08:59.8]} 10. O-O {[%clk 0:09:24.1]} 10... Nxe3 {[%clk 0:08:57.6]} 11. Qxe3 {[%clk 0:09:24.2]} 11... Be7 {[%clk 0:08:56.8]} 12. e5 {[%clk 0:09:19]} 12... dxe5 {[%clk 0:08:53.5]} 13. fxe5 {[%clk 0:09:19.7]} 13... O-O {[%clk 0:08:53.1]} 14. Bd3 {[%clk 0:09:19.2]} 14... Bg5 {[%clk 0:08:51.9]} 15. Qe4 {[%clk 0:09:18.7]} 15... g6 {[%clk 0:08:29.3]} 16. Nd5 {[%clk 0:08:53.7]} 16... Bc6 {[%clk 0:08:13.7]} 17. Bc4 {[%clk 0:08:25]} 17... Re8 {[%clk 0:07:20.7]} 18. Rae1 {[%clk 0:07:29.1]} 18... b5 {[%clk 0:06:42.5]} 19. Bb3 {[%clk 0:07:15.7]} 19... Qd7 {[%clk 0:06:07]} 20. Qf3 {[%clk 0:06:49.7]} 20... a5 {[%clk 0:05:51.4]} 21. Nf6+ {[%clk 0:06:42.5]} 21... Bxf6 {[%clk 0:05:51.3]} 22. Qxf6 {[%clk 0:06:41.7]} 22... Rf8 {[%clk 0:05:11.1]} 23. e6 {[%clk 0:06:07.8]} 23... fxe6 {[%clk 0:05:06.5]} 24. Bxe6+ {[%clk 0:06:04.8]} 24... Rf7 {[%clk 0:04:13.7]} 25. Qxg6+ {[%clk 0:06:03.1]} 25... Kh8 {[%clk 0:03:54.1]} 26. Bxd7 {[%clk 0:05:57.4]} 26... Rxd7 {[%clk 0:03:21.5]} 27. Qxh6+ {[%clk 0:05:55.1]} 27... Rh7 {[%clk 0:03:20.5]} 28. Qxc6 {[%clk 0:05:54.9]} 28... Rd8 {[%clk 0:03:16.9]} 29. Qf6+ {[%clk 0:05:43.8]} 29... Rg7 {[%clk 0:03:15.6]} 30. Qxd8+ {[%clk 0:05:43]} 30... Kh7 {[%clk 0:03:14.5]} 31. Qe8 {[%clk 0:05:31.2]} 31... c5 {[%clk 0:03:13.7]} 32. Rf8 {[%clk 0:05:29.8]} 32... c4 {[%clk 0:03:12.2]} 33. Rh8# {[%clk 0:05:28.8]} 1-0

[Event "Live Chess"]
[Site "Chess.com"]
[Date "2010.12.30"]
[Round "-"]
[White "Sam2012"]
[Black "hipposcottimus"]
[Result "0-1"]
[CurrentPosition "4r3/p5kp/6p1/8/1P1N4/3B2n1/3K1p2/8 w - -"]
[Timezone "UTC"]
[ECO "A00"]
[ECOUrl "https://www.chess.com/openings/Mieses-Opening-Reversed-Rat-Variation"]
[UTCDate "2010.12.30"]
[UTCTime "22:20:56"]
[WhiteElo "955"]
[BlackElo "1362"]
[TimeControl "120+12"]
[Termination "hipposcottimus won by resignation"]
[StartTime "22:20:56"]
[EndDate "2010.12.30"]
[EndTime "22:35:19"]
[Link "https://www.chess.com/game/live/82659721"]

1. d3 {[%clk 0:02:00]} 1... e5 {[%clk 0:02:00]} 2. Be3 {[%clk 0:02:04.6]} 2... d5 {[%clk 0:02:07]} 3. Qc1 {[%clk 0:02:09.3]} 3... d4 {[%clk 0:02:17.9]} 4. Bg5 {[%clk 0:02:14.9]} 4... f6 {[%clk 0:02:28.9]} 5. Bd2 {[%clk 0:02:22.5]} 5... Nc6 {[%clk 0:02:39.9]} 6. c3 {[%clk 0:02:30.2]} 6... Bf5 {[%clk 0:02:50.2]} 7. g3 {[%clk 0:02:28.7]} 7... e4 {[%clk 0:03:00.9]} 8. dxe4 {[%clk 0:02:35.3]} 8... Bxe4 {[%clk 0:03:10.9]} 9. f3 {[%clk 0:02:46.4]} 9... Bd5 {[%clk 0:03:14]} 10. Bh3 {[%clk 0:02:40.4]} 10... Nge7 {[%clk 0:03:22.7]} 11. Bf4 {[%clk 0:02:40.7]} 11... Ng6 {[%clk 0:03:27.5]} 12. cxd4 {[%clk 0:02:43.6]} 12... Bb4+ {[%clk 0:03:34]} 13. Kf1 {[%clk 0:02:48]} 13... O-O {[%clk 0:03:42.4]} 14. a3 {[%clk 0:02:55.8]} 14... Bd6 {[%clk 0:03:44.9]} 15. e3 {[%clk 0:02:52.4]} 15... Bxf4 {[%clk 0:03:54.4]} 16. exf4 {[%clk 0:03:01.9]} 16... Nxd4 {[%clk 0:04:04.6]} 17. Qc5 {[%clk 0:03:04.1]} 17... Bxf3 {[%clk 0:04:05.2]} 18. Nxf3 {[%clk 0:03:13.4]} 18... Nxf3 {[%clk 0:04:15.3]} 19. Be6+ {[%clk 0:03:19.3]} 19... Kh8 {[%clk 0:04:25.7]} 20. Nc3 {[%clk 0:03:11.4]} 20... b6 {[%clk 0:04:36.8]} 21. Rd1 {[%clk 0:03:16.6]} 21... Qxd1+ {[%clk 0:04:43.3]} 22. Nxd1 {[%clk 0:03:24.2]} 22... bxc5 {[%clk 0:04:54.4]} 23. Ne3 {[%clk 0:03:28.5]} 23... Nd4 {[%clk 0:05:03.7]} 24. Bd5 {[%clk 0:03:33.3]} 24... c6 {[%clk 0:05:09.9]} 25. Bc4 {[%clk 0:03:42.7]} 25... Rae8 {[%clk 0:05:19.1]} 26. Kf2 {[%clk 0:03:30.2]} 26... Re4 {[%clk 0:05:13.1]} 27. Bd3 {[%clk 0:03:29.7]} 27... Re6 {[%clk 0:05:06.3]} 28. f5 {[%clk 0:03:39.5]} 28... Nxf5 {[%clk 0:05:11.4]} 29. Bxf5 {[%clk 0:03:49.6]} 29... Rd6 {[%clk 0:05:14.9]} 30. Nc4 {[%clk 0:03:55.4]} 30... Rd4 {[%clk 0:05:19.6]} 31. Rc1 {[%clk 0:03:32.8]} 31... Ne5 {[%clk 0:05:30.2]} 32. Ne3 {[%clk 0:03:25.7]} 32... g6 {[%clk 0:05:34.3]} 33. Be6 {[%clk 0:03:26.6]} 33... Rd2+ {[%clk 0:05:39.7]} 34. Ke1 {[%clk 0:03:27.9]} 34... Rxh2 {[%clk 0:05:42.2]} 35. Nc4 {[%clk 0:03:22.7]} 35... Nd3+ {[%clk 0:05:49.5]} 36. Kd1 {[%clk 0:03:27.6]} 36... Rh1+ {[%clk 0:05:58.2]} 37. Kd2 {[%clk 0:03:36.4]} 37... Nxc1 {[%clk 0:06:08.3]} 38. Nd6 {[%clk 0:03:46.7]} 38... Rd8 {[%clk 0:06:16.6]} 39. Kc2 {[%clk 0:03:51.4]} 39... Ne2 {[%clk 0:06:26.2]} 40. Nf7+ {[%clk 0:04:00.6]} 40... Kg7 {[%clk 0:06:36.1]} 41. Nxd8 {[%clk 0:03:59.1]} 41... Nxg3 {[%clk 0:06:46.7]} 42. Nxc6 {[%clk 0:02:58.1]} 42... Re1 {[%clk 0:06:54.5]} 43. Bc4 {[%clk 0:02:54.4]} 43... f5 {[%clk 0:07:02.2]} 44. Kd2 {[%clk 0:02:48.2]} 44... Re4 {[%clk 0:07:02.9]} 45. Bd3 {[%clk 0:02:48.3]} 45... Re6 {[%clk 0:07:06.3]} 46. Nd8 {[%clk 0:02:54.9]} 46... Re8 {[%clk 0:07:09.5]} 47. Nc6 {[%clk 0:02:49.7]} 47... f4 {[%clk 0:07:18.4]} 48. b4 {[%clk 0:02:20]} 48... cxb4 {[%clk 0:07:20.4]} 49. axb4 {[%clk 0:02:28.7]} 49... f3 {[%clk 0:07:26.5]} 50. Nd4 {[%clk 0:02:31.7]} 50... f2 {[%clk 0:07:30.6]} 0-1

[Event "Live Chess"]
[Site "Chess.com"]
[Date "2010.12.30"]
[Round "-"]
[White "bryanakabrine"]
[Black "hipposcottimus"]
[Result "1-0"]
[CurrentPosition "r2q1rk1/pppn2pp/2nb4/3Np3/6P1/4BN1P/PPP1QPB1/R4RK1 b - -"]
[Timezone "UTC"]
[ECO "C47"]
[ECOUrl "https://www.chess.com/openings/Four-Knights-Game"]
[UTCDate "2010.12.30"]
[UTCTime "22:00:04"]
[WhiteElo "1348"]
[BlackElo "1362"]
[TimeControl "120+12"]
[Termination "bryanakabrine won on time"]
[StartTime "22:00:04"]
[EndDate "2010.12.30"]
[EndTime "22:06:15"]
[Link "https://www.chess.com/game/live/82654056"]

1. e4 {[%clk 0:02:00]} 1... e5 {[%clk 0:02:00]} 2. Nf3 {[%clk 0:02:08.6]} 2... Nc6 {[%clk 0:02:10.8]} 3. Nc3 {[%clk 0:02:19.1]} 3... Nf6 {[%clk 0:02:19.7]} 4. d3 {[%clk 0:02:29.1]} 4... d5 {[%clk 0:02:26.7]} 5. Qe2 {[%clk 0:02:37.7]} 5... Bd6 {[%clk 0:02:23.8]} 6. h3 {[%clk 0:02:42.5]} 6... dxe4 {[%clk 0:02:24.4]} 7. dxe4 {[%clk 0:02:48.9]} 7... O-O {[%clk 0:01:03]} 8. g3 {[%clk 0:02:54.5]} 8... Be6 {[%clk 0:00:51.1]} 9. Bg2 {[%clk 0:02:56.4]} 9... Nd7 {[%clk 0:00:58.4]} 10. O-O {[%clk 0:02:57]} 10... f5 {[%clk 0:01:01.8]} 11. exf5 {[%clk 0:02:46.5]} 11... Bxf5 {[%clk 0:01:09.2]} 12. g4 {[%clk 0:02:50.4]} 12... Be6 {[%clk 0:00:47]} 13. Be3 {[%clk 0:02:34.1]} 13... Bd5 {[%clk 0:00:48]} 14. Nxd5 {[%clk 0:02:32.6]} 1-0

[Event "Live Chess"]
[Site "Chess.com"]
[Date "2010.12.30"]
[Round "-"]
[White "gerrywin"]
[Black "hipposcottimus"]
[Result "0-1"]
[CurrentPosition "4r2k/pp4pp/2p4q/5Q2/3P4/2P5/PPB1b1pP/6K1 w - -"]
[Timezone "UTC"]
[ECO "C36"]
[ECOUrl "https://www.chess.com/openings/Kings-Gambit-Accepted-Modern-Defense-4.exd5"]
[UTCDate "2010.12.30"]
[UTCTime "21:41:44"]
[WhiteElo "1601"]
[BlackElo "1371"]
[TimeControl "360+2"]
[Termination "hipposcottimus won on time"]
[StartTime "21:41:44"]
[EndDate "2010.12.30"]
[EndTime "21:54:46"]
[Link "https://www.chess.com/game/live/82648866"]

1. e4 {[%clk 0:06:00]} 1... e5 {[%clk 0:06:00]} 2. f4 {[%clk 0:05:59.8]} 2... d5 {[%clk 0:05:47.6]} 3. exd5 {[%clk 0:05:48.5]} 3... exf4 {[%clk 0:05:41.1]} 4. Nf3 {[%clk 0:05:43.7]} 4... Nf6 {[%clk 0:05:39.2]} 5. d4 {[%clk 0:05:42.4]} 5... Nxd5 {[%clk 0:05:36.7]} 6. Bc4 {[%clk 0:04:57.7]} 6... Ne3 {[%clk 0:05:26.7]} 7. Qe2 {[%clk 0:04:52]} 7... Be7 {[%clk 0:05:11.2]} 8. Bxe3 {[%clk 0:04:50.9]} 8... fxe3 {[%clk 0:05:10.2]} 9. Qxe3 {[%clk 0:04:50.9]} 9... Nc6 {[%clk 0:05:02.3]} 10. O-O {[%clk 0:04:29.6]} 10... O-O {[%clk 0:04:13.8]} 11. c3 {[%clk 0:04:10.5]} 11... Kh8 {[%clk 0:03:54]} 12. Nbd2 {[%clk 0:04:07.1]} 12... f5 {[%clk 0:03:49.9]} 13. Ne5 {[%clk 0:03:46.6]} 13... Bg5 {[%clk 0:03:36.4]} 14. Qe2 {[%clk 0:02:48.3]} 14... Nxe5 {[%clk 0:03:35.3]} 15. Qxe5 {[%clk 0:01:58.6]} 15... Bxd2 {[%clk 0:03:31.9]} 16. Rad1 {[%clk 0:01:59.4]} 16... Re8 {[%clk 0:03:19]} 17. Qg3 {[%clk 0:01:49.5]} 17... f4 {[%clk 0:03:14.7]} 18. Qd3 {[%clk 0:01:16.9]} 18... Be3+ {[%clk 0:03:08]} 19. Kh1 {[%clk 0:01:18.1]} 19... Qg5 {[%clk 0:02:52.4]} 20. Bb3 {[%clk 0:01:16.5]} 20... c6 {[%clk 0:02:32.7]} 21. Bc2 {[%clk 0:01:16.6]} 21... Qh6 {[%clk 0:02:18.3]} 22. Rde1 {[%clk 0:00:57.2]} 22... Bg4 {[%clk 0:02:07.3]} 23. Rxe3 {[%clk 0:00:18.5]} 23... Rxe3 {[%clk 0:02:00]} 24. Qc4 {[%clk 0:00:14.4]} 24... Rae8 {[%clk 0:01:50.5]} 25. Qc5 {[%clk 0:00:12.7]} 25... Re1 {[%clk 0:01:49.5]} 26. Kg1 {[%clk 0:00:03.3]} 26... Rxf1+ {[%clk 0:01:25.2]} 27. Kxf1 {[%clk 0:00:04.4]} 27... Be2+ {[%clk 0:01:21.3]} 28. Kg1 {[%clk 0:00:02.8]} 28... f3 {[%clk 0:01:08.8]} 29. Qf5 {[%clk 0:00:03.5]} 29... fxg2 {[%clk 0:01:05.2]} 0-1

[Event "Live Chess"]
[Site "Chess.com"]
[Date "2010.12.30"]
[Round "-"]
[White "hipposcottimus"]
[Black "WBrenner"]
[Result "1-0"]
[CurrentPosition "2R1Q3/3k4/1b6/1N1r1p2/P7/1P4P1/3p1P2/6K1 b - -"]
[Timezone "UTC"]
[ECO "C55"]
[ECOUrl "https://www.chess.com/openings/Italian-Game-Anti-Fried-Liver-Defense"]
[UTCDate "2010.12.30"]
[UTCTime "21:28:51"]
[WhiteElo "1357"]
[BlackElo "1256"]
[TimeControl "240+4"]
[Termination "hipposcottimus won by checkmate"]
[StartTime "21:28:51"]
[EndDate "2010.12.30"]
[EndTime "21:39:06"]
[Link "https://www.chess.com/game/live/82645308"]

1. e4 {[%clk 0:04:00]} 1... e5 {[%clk 0:04:00]} 2. Nf3 {[%clk 0:03:56.2]} 2... Nc6 {[%clk 0:04:01.1]} 3. Bc4 {[%clk 0:03:43.6]} 3... h6 {[%clk 0:04:03]} 4. d4 {[%clk 0:03:39.4]} 4... exd4 {[%clk 0:04:02.8]} 5. Nxd4 {[%clk 0:03:39.9]} 5... Nge7 {[%clk 0:04:01.4]} 6. Bf4 {[%clk 0:03:30.1]} 6... g5 {[%clk 0:03:52.8]} 7. Qh5 {[%clk 0:03:18]} 7... Rh7 {[%clk 0:03:40.8]} 8. Bxg5 {[%clk 0:03:16.1]} 8... Nxd4 {[%clk 0:03:34]} 9. O-O {[%clk 0:03:14.9]} 9... Nxc2 {[%clk 0:03:35.2]} 10. Bxh6 {[%clk 0:03:05.3]} 10... Bxh6 {[%clk 0:03:26.5]} 11. Nc3 {[%clk 0:03:01]} 11... Nxa1 {[%clk 0:03:26.9]} 12. Rxa1 {[%clk 0:03:01.8]} 12... Ng6 {[%clk 0:03:19.9]} 13. Nd5 {[%clk 0:02:58.1]} 13... Qg5 {[%clk 0:03:17.4]} 14. Qxg5 {[%clk 0:02:52.1]} 14... Bxg5 {[%clk 0:03:19]} 15. Nxc7+ {[%clk 0:02:55.8]} 15... Kd8 {[%clk 0:03:21.7]} 16. Nxa8 {[%clk 0:02:58.2]} 16... Bf4 {[%clk 0:03:18.7]} 17. g3 {[%clk 0:02:57.9]} 17... Be5 {[%clk 0:03:14.3]} 18. Rb1 {[%clk 0:02:52.1]} 18... d6 {[%clk 0:03:01.5]} 19. b3 {[%clk 0:02:48.7]} 19... b6 {[%clk 0:03:03.3]} 20. Rc1 {[%clk 0:02:44.2]} 20... Bb7 {[%clk 0:03:05.3]} 21. Bd5 {[%clk 0:02:43.4]} 21... Bxd5 {[%clk 0:03:03.2]} 22. exd5 {[%clk 0:02:46.4]} 22... Kd7 {[%clk 0:02:47]} 23. Rc7+ {[%clk 0:02:44.4]} 23... Ke8 {[%clk 0:02:49]} 24. Rxa7 {[%clk 0:02:43.3]} 24... Ne7 {[%clk 0:02:45.9]} 25. Nxb6 {[%clk 0:02:43.5]} 25... Rh5 {[%clk 0:02:41.4]} 26. a4 {[%clk 0:02:35.9]} 26... Bd4 {[%clk 0:02:43.7]} 27. Ra8+ {[%clk 0:02:27.6]} 27... Nc8 {[%clk 0:02:40.1]} 28. Nxc8 {[%clk 0:02:25.9]} 28... Kd7 {[%clk 0:02:39]} 29. Na7 {[%clk 0:02:11.2]} 29... Rxd5 {[%clk 0:02:38.5]} 30. Nb5 {[%clk 0:02:04.8]} 30... Bb6 {[%clk 0:02:30]} 31. Rf8 {[%clk 0:01:53.7]} 31... f5 {[%clk 0:02:29.9]} 32. Rf7+ {[%clk 0:01:25.4]} 32... Kc6 {[%clk 0:02:31.6]} 33. h4 {[%clk 0:01:21.2]} 33... Re5 {[%clk 0:02:25.9]} 34. h5 {[%clk 0:01:16.5]} 34... d5 {[%clk 0:02:25.9]} 35. h6 {[%clk 0:01:17.7]} 35... d4 {[%clk 0:02:28.6]} 36. Rf8 {[%clk 0:01:18.5]} 36... Rd5 {[%clk 0:02:16]} 37. h7 {[%clk 0:01:20.3]} 37... d3 {[%clk 0:02:16.7]} 38. h8=Q {[%clk 0:01:22.3]} 38... d2 {[%clk 0:02:18.9]} 39. Rc8+ {[%clk 0:01:18.8]} 39... Kd7 {[%clk 0:02:17]} 40. Qe8# {[%clk 0:01:04.7]} 1-0

[Event "Live Chess"]
[Site "Chess.com"]
[Date "2010.12.30"]
[Round "-"]
[White "WBrenner"]
[Black "hipposcottimus"]
[Result "1-0"]
[CurrentPosition "rn3rk1/pQ2b1pp/5n2/3pNp2/8/4B3/PPP2PPP/2KR3R b - -"]
[Timezone "UTC"]
[ECO "A00"]
[ECOUrl "https://www.chess.com/openings/Van-Geet-Opening-1...d5-2.e3-e5"]
[UTCDate "2010.12.30"]
[UTCTime "21:23:00"]
[WhiteElo "1262"]
[BlackElo "1351"]
[TimeControl "240+4"]
[Termination "WBrenner won by resignation"]
[StartTime "21:23:00"]
[EndDate "2010.12.30"]
[EndTime "21:28:12"]
[Link "https://www.chess.com/game/live/82643617"]

1. Nc3 {[%clk 0:04:00]} 1... d5 {[%clk 0:04:00]} 2. e3 {[%clk 0:03:57.3]} 2... e5 {[%clk 0:04:00.9]} 3. Qe2 {[%clk 0:03:48.6]} 3... f5 {[%clk 0:03:50.3]} 4. Qb5+ {[%clk 0:03:49.9]} 4... c6 {[%clk 0:03:40.9]} 5. Qa4 {[%clk 0:03:24.2]} 5... Nf6 {[%clk 0:03:37.9]} 6. d4 {[%clk 0:03:21.5]} 6... b5 {[%clk 0:03:28.3]} 7. Nxb5 {[%clk 0:03:17.7]} 7... cxb5 {[%clk 0:03:23.7]} 8. Qxb5+ {[%clk 0:03:19.5]} 8... Bd7 {[%clk 0:03:27.3]} 9. Qb7 {[%clk 0:03:16.1]} 9... Bc6 {[%clk 0:03:27.5]} 10. Qb3 {[%clk 0:03:13.1]} 10... exd4 {[%clk 0:03:23.5]} 11. Bb5 {[%clk 0:03:14.6]} 11... dxe3 {[%clk 0:03:17.3]} 12. Bxe3 {[%clk 0:03:09.6]} 12... Be7 {[%clk 0:03:05]} 13. O-O-O {[%clk 0:03:08.5]} 13... O-O {[%clk 0:03:05.3]} 14. Nf3 {[%clk 0:03:02.9]} 14... Qe8 {[%clk 0:02:33]} 15. Bxc6 {[%clk 0:02:59.1]} 15... Qxc6 {[%clk 0:02:31.8]} 16. Ne5 {[%clk 0:03:01.4]} 16... Qb7 {[%clk 0:02:29.9]} 17. Qxb7 {[%clk 0:02:39.2]} 1-0

[Event "Live Chess"]
[Site "Chess.com"]
[Date "2010.12.30"]
[Round "-"]
[White "hipposcottimus"]
[Black "kerween"]
[Result "1-0"]
[CurrentPosition "2krn1qr/5R2/pPNpQ2b/P1pP4/6pp/7P/6P1/2R3K1 b - -"]
[Timezone "UTC"]
[ECO "B07"]
[ECOUrl "https://www.chess.com/openings/Pirc-Defense-2.d4-c6"]
[UTCDate "2010.12.30"]
[UTCTime "21:00:48"]
[WhiteElo "1360"]
[BlackElo "1646"]
[TimeControl "600+4"]
[Termination "hipposcottimus won by resignation"]
[StartTime "21:00:48"]
[EndDate "2010.12.30"]
[EndTime "21:13:25"]
[Link "https://www.chess.com/game/live/82637161"]

1. e4 {[%clk 0:10:00]} 1... c6 {[%clk 0:10:00]} 2. d4 {[%clk 0:09:58.6]} 2... d6 {[%clk 0:10:02.6]} 3. c4 {[%clk 0:09:59.5]} 3... e6 {[%clk 0:10:02.7]} 4. Be3 {[%clk 0:09:55.8]} 4... Na6 {[%clk 0:10:05.3]} 5. f4 {[%clk 0:09:56.9]} 5... Nc7 {[%clk 0:10:07.6]} 6. Nf3 {[%clk 0:09:57.6]} 6... Bd7 {[%clk 0:10:10]} 7. Be2 {[%clk 0:09:58.5]} 7... Qe7 {[%clk 0:10:11.2]} 8. b4 {[%clk 0:09:51.4]} 8... f6 {[%clk 0:10:14]} 9. a4 {[%clk 0:09:51.7]} 9... Qf7 {[%clk 0:10:16.7]} 10. Nc3 {[%clk 0:09:36.6]} 10... Nh6 {[%clk 0:10:19.2]} 11. f5 {[%clk 0:09:34.9]} 11... Ng4 {[%clk 0:10:18.1]} 12. fxe6 {[%clk 0:09:26.6]} 12... Bxe6 {[%clk 0:10:12.7]} 13. Bf2 {[%clk 0:09:13.3]} 13... Nxf2 {[%clk 0:10:14.6]} 14. Kxf2 {[%clk 0:09:16.4]} 14... Bxc4 {[%clk 0:10:17.4]} 15. Re1 {[%clk 0:09:13.3]} 15... O-O-O {[%clk 0:10:14.5]} 16. Kg1 {[%clk 0:09:14.5]} 16... g5 {[%clk 0:10:12]} 17. b5 {[%clk 0:09:10.6]} 17... c5 {[%clk 0:09:59.1]} 18. d5 {[%clk 0:08:56]} 18... Bxe2 {[%clk 0:09:56.7]} 19. Qxe2 {[%clk 0:08:58.6]} 19... Ne8 {[%clk 0:09:58.9]} 20. Rf1 {[%clk 0:08:59.1]} 20... Qe7 {[%clk 0:09:54.2]} 21. a5 {[%clk 0:08:54.5]} 21... h5 {[%clk 0:09:55.9]} 22. b6 {[%clk 0:08:27]} 22... a6 {[%clk 0:09:58.3]} 23. Rac1 {[%clk 0:08:24.1]} 23... Kb8 {[%clk 0:09:59.9]} 24. Nb5 {[%clk 0:07:17.9]} 24... h4 {[%clk 0:09:59]} 25. Na7 {[%clk 0:07:03.4]} 25... Qh7 {[%clk 0:09:08.9]} 26. h3 {[%clk 0:06:57.7]} 26... Bh6 {[%clk 0:09:05.8]} 27. Nc6+ {[%clk 0:06:57.9]} 27... Kc8 {[%clk 0:09:06.5]} 28. e5 {[%clk 0:06:35.3]} 28... fxe5 {[%clk 0:09:02.5]} 29. Nfxe5 {[%clk 0:06:33.8]} 29... g4 {[%clk 0:08:42.7]} 30. Rf7 {[%clk 0:06:28.9]} 30... Qg8 {[%clk 0:08:33.2]} 31. Na7+ {[%clk 0:06:19]} 31... Kb8 {[%clk 0:08:26]} 32. Nec6+ {[%clk 0:04:43.6]} 32... bxc6 {[%clk 0:08:19.2]} 33. Nxc6+ {[%clk 0:03:54.3]} 33... Kc8 {[%clk 0:08:15.2]} 34. Qe6+ {[%clk 0:03:52.7]} 1-0

[Event "Live Chess"]
[Site "Chess.com"]
[Date "2010.12.30"]
[Round "-"]
[White "konkachri"]
[Black "hipposcottimus"]
[Result "1-0"]
[CurrentPosition "r3r1k1/ppp2ppp/7q/3P4/2Q2PN1/2P5/PPP3PP/1K1R3R b - -"]
[Timezone "UTC"]
[ECO "C50"]
[ECOUrl "https://www.chess.com/openings/Italian-Game"]
[UTCDate "2010.12.30"]
[UTCTime "20:55:01"]
[WhiteElo "1296"]
[BlackElo "1345"]
[TimeControl "600"]
[Termination "konkachri won by resignation"]
[StartTime "20:55:01"]
[EndDate "2010.12.30"]
[EndTime "20:59:46"]
[Link "https://www.chess.com/game/live/82635386"]

1. e4 {[%clk 0:10:00]} 1... e5 {[%clk 0:10:00]} 2. Bc4 {[%clk 0:09:58.6]} 2... Nc6 {[%clk 0:09:55.8]} 3. Nf3 {[%clk 0:09:56.4]} 3... Nf6 {[%clk 0:09:53.8]} 4. Nc3 {[%clk 0:09:54.3]} 4... Na5 {[%clk 0:09:37.7]} 5. Qe2 {[%clk 0:09:45.6]} 5... Bb4 {[%clk 0:09:28.5]} 6. Nxe5 {[%clk 0:09:34.6]} 6... d5 {[%clk 0:09:08.2]} 7. exd5 {[%clk 0:09:16.5]} 7... Nxc4 {[%clk 0:09:04]} 8. Qxc4 {[%clk 0:09:06.1]} 8... Bxc3 {[%clk 0:09:01.6]} 9. dxc3 {[%clk 0:08:46.3]} 9... O-O {[%clk 0:08:56.4]} 10. Bg5 {[%clk 0:08:41.6]} 10... Qd6 {[%clk 0:08:52.5]} 11. Bxf6 {[%clk 0:08:12.8]} 11... Qxf6 {[%clk 0:08:42.8]} 12. f4 {[%clk 0:08:03]} 12... Re8 {[%clk 0:08:15]} 13. O-O-O {[%clk 0:07:49.4]} 13... Qh6 {[%clk 0:08:00.6]} 14. Kb1 {[%clk 0:07:39.9]} 14... Bg4 {[%clk 0:07:53]} 15. Nxg4 {[%clk 0:07:30]} 1-0

[Event "Live Chess"]
[Site "Chess.com"]
[Date "2010.12.30"]
[Round "-"]
[White "hipposcottimus"]
[Black "clarodeagua2008"]
[Result "1-0"]
[CurrentPosition "6k1/1Rp3pp/8/7n/5p2/3rB3/5PPP/1R4K1 w - -"]
[Timezone "UTC"]
[ECO "C51"]
[ECOUrl "https://www.chess.com/openings/Giuoco-Piano-Game-Evans-Accepted-McDonnell-Defense-6.O-O"]
[UTCDate "2010.12.30"]
[UTCTime "20:45:32"]
[WhiteElo "1354"]
[BlackElo "1561"]
[TimeControl "540"]
[Termination "hipposcottimus won by resignation"]
[StartTime "20:45:32"]
[EndDate "2010.12.30"]
[EndTime "20:52:10"]
[Link "https://www.chess.com/game/live/82632912"]

1. e4 {[%clk 0:09:00]} 1... e5 {[%clk 0:09:00]} 2. Nf3 {[%clk 0:08:54.4]} 2... Nc6 {[%clk 0:08:57.4]} 3. Bc4 {[%clk 0:08:49.9]} 3... Bc5 {[%clk 0:08:55.4]} 4. b4 {[%clk 0:08:46.7]} 4... Bxb4 {[%clk 0:08:49.2]} 5. c3 {[%clk 0:08:40.3]} 5... Bc5 {[%clk 0:08:44.9]} 6. O-O {[%clk 0:08:35.1]} 6... Nf6 {[%clk 0:08:43.4]} 7. d4 {[%clk 0:08:31.5]} 7... exd4 {[%clk 0:08:39.2]} 8. cxd4 {[%clk 0:08:26.4]} 8... Bb4 {[%clk 0:08:25.9]} 9. a3 {[%clk 0:08:22.4]} 9... d5 {[%clk 0:08:14.1]} 10. exd5 {[%clk 0:08:11.6]} 10... Nxd5 {[%clk 0:08:05.2]} 11. axb4 {[%clk 0:08:08.5]} 11... Ncxb4 {[%clk 0:08:02.1]} 12. Re1+ {[%clk 0:07:55.8]} 12... Be6 {[%clk 0:08:00.5]} 13. Ng5 {[%clk 0:07:42.8]} 13... O-O {[%clk 0:07:55]} 14. Qh5 {[%clk 0:07:29.7]} 14... Nf6 {[%clk 0:07:47]} 15. Nxe6 {[%clk 0:07:12.4]} 15... Nxh5 {[%clk 0:07:35.6]} 16. Nxd8 {[%clk 0:07:09.4]} 16... Raxd8 {[%clk 0:07:33.8]} 17. Rxa7 {[%clk 0:07:05.3]} 17... Rxd4 {[%clk 0:07:26.6]} 18. Bb3 {[%clk 0:06:46.7]} 18... Nd3 {[%clk 0:07:19.7]} 19. Rd1 {[%clk 0:06:38.5]} 19... Rfd8 {[%clk 0:07:17.4]} 20. Be3 {[%clk 0:06:32.1]} 20... Rb4 {[%clk 0:07:05.9]} 21. Bc2 {[%clk 0:06:17]} 21... f5 {[%clk 0:06:32.3]} 22. Bxd3 {[%clk 0:05:45.4]} 22... Rxb1 {[%clk 0:06:09]} 23. Rxb1 {[%clk 0:05:33.9]} 23... Rxd3 {[%clk 0:06:06.3]} 24. Raxb7 {[%clk 0:05:31]} 24... f4 {[%clk 0:06:03.1]} 1-0